bitfinex/quotes_SOLUSD_20250602
["timestamp","ask_amount","ask_price","bid_price","bid_amount"]
[1748867154597,5.0,153.32,153.28,88.8]
[1748867154797,5.0,153.32,153.25,88.8]
[1748867155000,5.0,153.32,153.25,25.17478347]
[1748867155993,5.0,153.32,153.25,41.48799717]
[1748867156798,5.0,153.32,153.26,26.0]
[1748867157284,5.0,153.32,153.27,18.64964886]
[1748867157491,5.0,153.32,153.27,44.64964886]
[1748867159292,5.0,153.32,153.28,6.52400835]
[1748867159980,5.0,153.32,153.28,22.83402922]
[1748867160488,5.0,153.32,153.29,18.64964886]
[1748867160688,5.0,153.32,153.29,107.44964886]
[1748867161088,5.0,153.32,153.29,88.8]
[1748867161911,5.0,153.32,153.29,95.32357406]
[1748867164203,5.0,153.32,153.29,88.8]
[1748867164423,5.0,153.32,153.29,95.32349522]
[1748867165713,5.0,153.32,153.3,18.64964886]
[1748867167527,5.0,153.32,153.29,95.32352244]
[1748867167922,5.0,153.32,153.3,18.64964886]
[1748867168339,5.0,153.32,153.3,107.44964886]
[1748867168819,7.9021,153.4,153.3,133.44964886]
[1748867169028,1.6019,153.44,153.34,18.64964886]
[1748867169357,1.6019,153.44,153.34,107.44964886]
[1748867169657,1.6019,153.44,153.36,18.64964886]
[1748867170018,1.6019,153.44,153.36,44.64964886]
[1748867170222,1.6229,153.48,153.36,44.64964886]
[1748867170423,26.0,153.46,153.36,44.64964886]
[1748867171139,1.6229,153.48,153.36,44.64964886]
[1748867171656,26.0,153.46,153.36,44.64964886]
[1748867171862,26.0,153.46,153.38,18.64964886]
[1748867172048,1.6229,153.48,153.41,26.0]
[1748867172426,1.6229,153.48,153.42,18.64964886]
[1748867172643,1.6229,153.48,153.38,44.64964886]
[1748867173959,1.6229,153.48,153.4,18.64964886]
[1748867176043,1.6229,153.48,153.41,6.51847989]
[1748867176364,1.6229,153.48,153.4,25.16846744]
[1748867178375,1.6229,153.48,153.38,26.0]
[1748867178658,26.0,153.46,153.36,18.64964886]
[1748867178836,26.0,153.46,153.36,107.44964886]
[1748867179238,27.6229,153.48,153.36,113.96999049]
[1748867180478,27.6229,153.48,153.37,26.0]
[1748867180479,1.6229,153.48,153.37,26.0]
[1748867180684,1.6229,153.48,153.4,18.64964886]
[1748867181655,8.0029,153.53,153.44,18.64964886]
[1748867182246,34.0029,153.53,153.44,18.64964886]
[1748867182479,34.0029,153.53,153.45,6.51678071]
[1748867182979,8.0029,153.53,153.43,32.51731784]
[1748867183153,26.0,153.51,153.43,6.51731784]
[1748867183350,26.0,153.51,153.42,98.69064162]
[1748867185348,26.0,153.51,153.43,18.64964886]
[1748867186074,8.0029,153.53,153.43,18.64964886]
[1748867186891,8.0029,153.53,153.43,107.44964886]
[1748867187073,8.0029,153.53,153.45,18.64964886]
[1748867187871,8.0029,153.53,153.45,107.44964886]
[1748867189057,8.0029,153.53,153.44,114.8]
[1748867189261,8.0029,153.53,153.44,121.31706231]
[1748867189479,26.0,153.52,153.44,88.8]
[1748867189688,26.0,153.52,153.44,95.317184]
[1748867189982,26.0,153.52,153.44,88.8]
[1748867190474,26.0,153.5,153.42,9.89055126]
[1748867192689,26.0,153.5,153.43,18.64964886]
[1748867193475,26.0,153.5,153.44,6.51720542]
[1748867193972,8.0029,153.53,153.44,6.51720542]
[1748867194164,26.0,153.52,153.44,6.51720542]
[1748867194876,26.0,153.5,153.42,3.37265564]
[1748867195997,1.5646,153.49,153.42,92.17265564]
[1748867196293,1.5646,153.49,153.42,3.37265564]
[1748867196865,6.6421,153.48,153.42,3.37265564]
[1748867202187,32.6421,153.48,153.42,3.37265564]
[1748867206005,32.6421,153.48,153.42,9.89057889]
[1748867207305,6.6421,153.48,153.42,9.89057889]
[1748867207493,27.5646,153.49,153.42,9.89057889]
[1748867208803,6.0504,153.52,153.44,6.51720542]
[1748867209005,6.0504,153.52,153.45,18.64964886]
[1748867209218,32.0504,153.52,153.45,18.64964886]
[1748867210794,1.542,153.53,153.46,6.51635605]
[1748867214925,1.542,153.53,153.47,18.64964886]
[1748867215121,1.542,153.53,153.48,6.5155069]
[1748867216216,1.542,153.53,153.47,25.16549846]
[1748867216414,1.542,153.53,153.46,6.51619541]
[1748867219241,26.0,153.55,153.47,18.64964886]
[1748867220428,26.0,153.55,153.46,95.31619541]
[1748867220804,26.0,153.53,153.46,95.31619541]
[1748867221010,26.0,153.53,153.44,6.51720542]
[1748867221209,1.5227,153.52,153.43,6.51744674]
[1748867221408,6.2022,153.51,153.43,6.51744674]
[1748867221821,26.0,153.5,153.42,9.89054093]
[1748867223522,26.0,153.48,153.42,3.37265564]
[1748867223937,26.0,153.48,153.42,9.89069999]
[1748867225758,6.2022,153.51,153.42,9.89069999]
[1748867225759,26.0,153.5,153.42,9.89069999]
[1748867226343,26.0,153.5,153.43,18.64964886]
[1748867227166,26.0,153.5,153.44,6.51720542]
[1748867228544,26.0,153.5,153.44,95.31720542]
[1748867229982,1.5227,153.52,153.45,18.64964886]
[1748867230269,1.5227,153.52,153.45,107.44964886]
[1748867230781,6.3461,153.55,153.45,107.44964886]
[1748867230986,6.3461,153.55,153.45,109.02534886]
[1748867231333,1.5992,153.57,153.45,109.02534886]
[1748867231566,26.0,153.56,153.45,109.02534886]
[1748867231947,26.0,153.56,153.47,18.64964886]
[1748867233053,1.5992,153.57,153.47,133.44964886]
[1748867233767,26.0,153.58,153.49,18.64964886]
[1748867233965,26.0,153.58,153.49,107.44964886]
[1748867234177,26.0,153.58,153.51,18.64964886]
[1748867234756,18.05410581,153.59,153.51,18.64964886]
[1748867236259,18.05410581,153.59,153.51,25.16361654]
[1748867237279,18.05410581,153.59,153.51,113.96361654]
[1748867237779,18.05410581,153.59,153.51,88.8]
[1748867237960,1.5914,153.55,153.51,88.8]
[1748867240348,18.05410581,153.59,153.51,88.8]
[1748867240349,26.0,153.58,153.51,95.31422763]
[1748867242823,26.0,153.58,153.51,88.8]
[1748867242987,26.0,153.56,153.51,88.8]
[1748867243188,26.0,153.56,153.48,107.44964886]
[1748867243511,26.0,153.56,153.48,88.8]
[1748867243828,26.0,153.56,153.46,25.16593232]
[1748867245549,26.0,153.56,153.46,41.45682245]
[1748867246590,7.7132,153.59,153.49,44.64964886]
[1748867246801,7.7132,153.59,153.49,18.64964886]
[1748867247025,33.7132,153.59,153.49,44.64964886]
[1748867248916,33.7132,153.59,153.51,18.64964886]
[1748867251099,33.7132,153.59,153.52,6.51380927]
[1748867252923,33.7132,153.59,153.53,18.64964886]
[1748867253098,33.7132,153.59,153.53,107.44964886]
[1748867253427,33.7132,153.59,153.54,6.51296079]
[1748867255620,33.7132,153.59,153.53,88.8]
[1748867257915,33.7132,153.59,153.5,6.51435216]
[1748867258118,33.7132,153.59,153.51,18.64964886]
[1748867258726,1.543,153.59,153.51,18.64964886]
[1748867259030,6.5904,153.63,153.53,18.64964886]
[1748867259227,26.0,153.62,153.55,18.64964886]
[1748867259434,26.0,153.62,153.55,107.44964886]
[1748867259956,26.0,153.62,153.55,18.64964886]
[1748867260322,26.0,153.62,153.54,6.51296079]
[1748867260817,26.0,153.62,153.53,25.16293674]
[1748867261221,26.0,153.6,153.51,18.64964886]
[1748867261456,26.0,153.6,153.51,107.44964886]
[1748867262447,1.5068,153.59,153.51,88.8]
[1748867262635,6.3145,153.58,153.49,32.51489532]
[1748867262834,6.3145,153.58,153.48,18.64964886]
[1748867263052,6.3145,153.58,153.48,25.16502949]
[1748867264994,7.6647,153.63,153.51,18.64964886]
[1748867265353,7.6647,153.63,153.53,18.64964886]
[1748867265559,26.0,153.6,153.53,18.64964886]
[1748867267292,26.0,153.6,153.54,6.51296079]
[1748867267812,26.0,153.6,153.53,6.51325515]
[1748867269190,26.0,153.6,153.52,6.51380927]
[1748867273191,26.0,153.6,153.53,18.64964886]
[1748867275202,26.0,153.6,153.54,6.51296079]
[1748867277886,7.6647,153.63,153.54,6.51296079]
[1748867278092,26.0,153.62,153.54,6.51296079]
[1748867278479,7.6647,153.63,153.54,6.51296079]
[1748867280607,33.6647,153.63,153.55,18.64964886]
[1748867282106,33.6647,153.63,153.56,6.51211252]
[1748867282295,33.6647,153.63,153.55,25.1620113]
[1748867287783,26.0,153.65,153.55,25.1620113]
[1748867290494,11.78470603,153.69,153.57,18.64964886]
[1748867290794,19.63780603,153.69,153.57,18.64964886]
[1748867291283,19.63780603,153.69,153.58,26.0]
[1748867291485,45.63780603,153.69,153.58,26.0]
[1748867291708,19.63780603,153.69,153.59,18.64964886]
[1748867292210,26.0,153.68,153.59,18.64964886]
[1748867292800,26.0,153.68,153.61,18.64964886]
[1748867293394,19.63780603,153.69,153.61,18.64964886]
[1748867293596,1.6508,153.69,153.61,18.64964886]
[1748867294194,8.1414,153.73,153.61,18.64964886]
[1748867294410,26.0,153.7,153.61,18.64964886]
[1748867294789,26.0,153.7,153.63,18.64964886]
[1748867296815,26.0,153.7,153.63,25.15873449]
[1748867299120,26.0,153.72,153.64,18.64964886]
[1748867300123,26.0,153.72,153.65,6.50829808]
[1748867300939,26.0,153.72,153.64,25.15819783]
[1748867301242,26.0,153.72,153.64,18.64964886]
[1748867301716,26.0,153.72,153.64,25.15830727]
[1748867304222,26.0,153.72,153.64,18.64964886]
[1748867305034,32.50538838,153.72,153.62,88.8]
[1748867305236,26.0,153.7,153.62,88.8]
[1748867306854,26.0,153.68,153.62,88.8]
[1748867307141,1.5549,153.67,153.6,18.64964886]
[1748867309848,27.5549,153.67,153.6,18.64964886]
[1748867311046,1.5549,153.67,153.6,18.64964886]
[1748867311233,1.5549,153.67,153.59,18.64964886]
[1748867311548,27.5549,153.67,153.59,25.16048839]
[1748867312053,27.5549,153.67,153.59,18.64964886]
[1748867312655,27.5549,153.67,153.59,25.16038818]
[1748867313026,1.5549,153.67,153.59,25.16038818]
[1748867314440,1.5549,153.67,153.59,51.16038818]
[1748867317061,1.5549,153.67,153.59,139.96038818]
[1748867319663,26.0,153.7,153.59,156.23748955]
[1748867319959,1.5816,153.71,153.59,156.23748955]
[1748867320254,26.0,153.7,153.59,156.23748955]
[1748867320443,26.0,153.7,153.61,18.64964886]
[1748867320652,26.0,153.7,153.63,18.64964886]
[1748867322958,26.0,153.7,153.63,25.1585316]
[1748867324963,1.5816,153.71,153.63,25.1585316]
[1748867327768,1.5816,153.71,153.63,25.1585316]
[1748867328663,1.5816,153.71,153.63,113.9585316]
[1748867334177,26.0,153.7,153.63,107.44964886]
[1748867334379,26.0,153.7,153.6,18.64964886]
[1748867334581,26.0,153.7,153.6,25.15987213]
[1748867337868,26.0,153.7,153.6,113.95987213]
[1748867340194,26.0,153.7,153.6,130.23591379]
[1748867344791,1.5816,153.71,153.6,136.32481379]
[1748867344977,1.5816,153.71,153.62,18.64964886]
[1748867345664,1.5816,153.71,153.63,6.50914534]
[1748867346067,1.5816,153.71,153.64,18.64964886]
[1748867347092,1.5816,153.71,153.66,18.64964886]
[1748867347393,26.0,153.7,153.63,88.8]
[1748867348972,26.0,153.7,153.62,18.64964886]
[1748867349581,26.0,153.7,153.61,18.64964886]
[1748867350382,26.0,153.68,153.59,121.31080172]
[1748867350695,26.0,153.68,153.6,18.64964886]
[1748867351177,26.0,153.68,153.6,25.16000424]
[1748867351696,32.50635155,153.7,153.6,18.64964886]
[1748867351879,26.0,153.66,153.59,88.8]
[1748867352188,26.0,153.66,153.58,25.1606471]
[1748867353294,26.0,153.66,153.58,18.64964886]
[1748867354586,26.0,153.66,153.58,25.16085133]
[1748867358604,26.0,153.66,153.58,18.64964886]
[1748867359003,26.0,153.66,153.58,25.16087541]
[1748867360205,8.155,153.69,153.58,41.43903662]
[1748867360583,26.0,153.68,153.58,41.43903662]
[1748867361013,8.155,153.69,153.58,67.43903662]
[1748867361189,34.155,153.69,153.58,67.43903662]
[1748867361393,8.155,153.69,153.58,67.43903662]
[1748867361895,1.6293,153.69,153.58,99.99535905]
[1748867364480,1.6293,153.69,153.58,188.79535905]
[1748867366011,1.6293,153.69,153.62,18.64964886]
[1748867367013,1.6293,153.69,153.63,6.50914534]
[1748867373120,1.6293,153.69,153.65,6.50829808]
[1748867378928,26.0,153.72,153.65,6.50829808]
[1748867393234,19.73205254,153.73,153.66,18.64964886]
[1748867393431,19.73205254,153.73,153.67,6.50745103]
[1748867394331,19.73205254,153.73,153.64,25.15797808]
[1748867395829,19.73205254,153.73,153.64,18.64964886]
[1748867396235,19.73205254,153.73,153.64,25.1583366]
[1748867396433,19.73205254,153.73,153.64,18.64964886]
[1748867397022,26.0,153.7,153.62,6.5093903]
[1748867397228,26.0,153.7,153.59,16.27710102]
[1748867397229,26.0,153.7,153.6,18.64964886]
[1748867398053,26.0,153.7,153.6,25.16006552]
[1748867400164,26.0,153.7,153.6,41.43610718]
[1748867403762,26.0,153.69,153.6,25.16006552]
[1748867408673,26.0,153.7,153.6,18.64964886]
[1748867408866,1.6278,153.68,153.6,18.64964886]
[1748867409188,33.8059,153.68,153.59,18.64964886]
[1748867409357,33.8059,153.68,153.56,18.64964886]
[1748867409573,33.8059,153.68,153.56,44.64964886]
[1748867410098,38.47325632,153.68,153.56,44.64964886]
[1748867410260,44.98046443,153.68,153.56,44.64964886]
[1748867410461,26.0,153.65,153.56,18.64964886]
[1748867411387,26.0,153.65,153.56,25.16145914]
[1748867411694,26.0,153.64,153.56,25.16145914]
[1748867412256,6.0812,153.62,153.54,18.64964886]
[1748867412460,6.0812,153.62,153.53,1.5373]
[1748867412461,6.0812,153.62,153.53,25.16303386]
[1748867416391,6.0812,153.62,153.53,18.64964886]
[1748867416574,6.0812,153.62,153.52,26.0]
[1748867417385,12.59085175,153.62,153.51,25.16351581]
[1748867417763,6.0812,153.62,153.51,25.16351581]
[1748867421883,17.76915065,153.62,153.51,25.16351581]
[1748867423474,11.2594773,153.62,153.51,25.16351581]
[1748867424084,26.0,153.59,153.49,7.602]
[1748867424281,26.0,153.59,153.5,18.64964886]
[1748867424282,1.5596,153.58,153.5,18.64964886]
[1748867425292,26.0,153.59,153.5,18.64964886]
[1748867425595,26.0,153.61,153.52,18.64964886]
[1748867427383,26.0,153.61,153.54,18.64964886]
[1748867429486,26.0,153.61,153.55,6.51253663]
[1748867430579,26.0,153.64,153.56,18.64964886]
[1748867431097,1.5692,153.66,153.56,18.64964886]
[1748867431488,1.5692,153.66,153.58,18.64964886]
[1748867432001,26.0,153.64,153.58,18.64964886]
[1748867433189,26.0,153.64,153.59,6.51084054]
[1748867434310,26.0,153.64,153.58,18.64964886]
[1748867435703,26.0,153.64,153.59,6.51084054]
[1748867437007,26.0,153.64,153.56,25.16163063]
[1748867437505,26.0,153.64,153.52,6.51380927]
[1748867437506,8.0751,153.63,153.52,6.51380927]
[1748867437710,8.0751,153.63,153.53,18.64964886]
[1748867438332,26.0,153.6,153.53,18.64964886]
[1748867440192,26.0,153.6,153.54,6.51296079]
[1748867440905,8.0751,153.63,153.55,18.64964886]
[1748867441107,1.6629,153.63,153.55,18.64964886]
[1748867441416,8.1936,153.67,153.55,18.64964886]
[1748867441630,8.1936,153.67,153.57,18.64964886]
[1748867441787,1.6029,153.67,153.57,18.64964886]
[1748867442125,11.8498474,153.7,153.58,22.78942569]
[1748867442418,11.8498474,153.7,153.59,44.64964886]
[1748867442930,37.8498474,153.7,153.59,44.64964886]
[1748867443104,11.8498474,153.7,153.59,44.64964886]
[1748867444244,26.0,153.68,153.6,6.51041666]
[1748867448630,11.8498474,153.7,153.6,6.51041666]
[1748867448965,26.0,153.67,153.58,18.64964886]
[1748867449261,26.0,153.67,153.59,6.51084054]
[1748867452555,26.0,153.67,153.58,25.16083919]
[1748867452731,7.8687,153.66,153.58,25.16083919]
[1748867460256,7.8687,153.66,153.58,41.4390004]
[1748867461470,6.6086,153.69,153.58,67.4390004]
[1748867471954,39.4107474,153.7,153.62,18.64964886]
[1748867472158,1.5609,153.7,153.62,18.64964886]
[1748867472500,6.2624,153.71,153.63,6.50914534]
[1748867472784,6.2624,153.71,153.64,18.64964886]
[1748867474395,6.2624,153.71,153.65,6.50829808]
[1748867475369,26.0,153.72,153.66,18.64964886]
[1748867476580,26.0,153.72,153.67,6.50745103]
[1748867477095,27.6255,153.74,153.65,18.64964886]
[1748867477385,26.0,153.72,153.64,18.64964886]
[1748867477805,26.0,153.72,153.63,18.64964886]
[1748867478794,26.0,153.7,153.63,18.64964886]
[1748867479169,32.3936,153.7,153.61,95.30984314]
[1748867479388,1.6531,153.69,153.59,18.64964886]
[1748867480791,1.6531,153.69,153.58,32.51126448]
[1748867480792,1.6531,153.69,153.61,18.64964886]
[1748867482577,1.6531,153.69,153.61,6.50997995]
[1748867485505,1.6531,153.69,153.61,18.64964886]
[1748867487696,1.6531,153.69,153.61,6.50977421]
[1748867489629,1.6531,153.69,153.6,6.51041666]
[1748867490915,1.6531,153.69,153.61,18.64964886]
[1748867491721,1.6531,153.69,153.63,18.64964886]
[1748867493510,1.6531,153.69,153.63,6.50901659]
[1748867494696,1.6531,153.69,153.63,18.64964886]
[1748867495689,1.6531,153.69,153.63,6.50904759]
[1748867498120,1.6531,153.69,153.63,18.64964886]
[1748867500126,1.6531,153.69,153.63,6.50877487]
[1748867502428,1.6531,153.69,153.63,18.64964886]
[1748867503731,1.6531,153.69,153.63,6.50873915]
[1748867504128,26.0,153.7,153.64,18.64964886]
[1748867504328,150.4393,153.73,153.64,18.64964886]
[1748867504655,176.4393,153.73,153.64,18.64964886]
[1748867505645,1.5393,153.73,153.64,44.64964886]
[1748867505849,1.5393,153.73,153.65,6.50829808]
[1748867506559,1.5393,153.73,153.65,22.77904328]
[1748867508043,1.5393,153.73,153.65,6.50829808]
[1748867508351,12.03585093,153.75,153.69,18.64964886]
[1748867508553,148.9,153.77,153.69,18.64964886]
[1748867509959,148.9,153.77,153.7,22.77163304]
[1748867510152,4.6641141,153.85,153.74,18.64964886]
[1748867510352,13.62334309,153.86,153.74,18.64964886]
[1748867510353,13.62334309,153.86,153.75,18.64964886]
[1748867510738,26.0,153.85,153.75,18.64964886]
[1748867511569,13.62334309,153.86,153.75,18.64964886]
[1748867511787,13.62334309,153.86,153.75,25.26954886]
[1748867511948,39.62334309,153.86,153.77,18.64964886]
[1748867512348,1.6445,153.86,153.77,18.64964886]
[1748867513193,1.6445,153.86,153.76,18.64964886]
[1748867513852,1.6445,153.86,153.76,25.15312147]
[1748867523858,1.6445,153.86,153.76,41.41222656]
[1748867524175,1.6445,153.86,153.78,18.64964886]
[1748867525357,155.4858,153.87,153.78,18.64964886]
[1748867525692,155.4858,153.87,153.8,18.64964886]
[1748867527221,27.5359,153.84,153.71,6.50575759]
[1748867527518,26.0,153.83,153.71,6.50575759]
[1748867527678,26.0,153.83,153.72,18.64964886]
[1748867529105,26.0,153.83,153.74,18.64964886]
[1748867531081,26.0,153.83,153.75,6.50406504]
[1748867535210,26.0,153.83,153.74,6.50430223]
[1748867535512,26.0,153.83,153.71,26.0]
[1748867535719,26.0,153.79,153.7,25.15582973]
[1748867536890,26.0,153.79,153.7,41.4212819]
[1748867540709,26.0,153.79,153.7,25.15582973]
[1748867541319,1.635,153.78,153.7,25.15582973]
[1748867542295,27.635,153.78,153.68,6.50676262]
[1748867542516,27.635,153.78,153.7,6.50618087]
[1748867542517,1.635,153.78,153.7,6.50618087]
[1748867542720,27.635,153.78,153.7,6.50618087]
[1748867542934,1.635,153.78,153.7,6.50618087]
[1748867544694,1.635,153.78,153.69,6.5066042]
[1748867550247,26.0,153.8,153.7,44.64964886]
[1748867550915,26.0,153.8,153.72,18.64964886]
[1748867551445,26.0,153.8,153.74,18.64964886]
[1748867551918,26.0,153.8,153.73,6.5049112]
[1748867558526,148.9,153.81,153.73,6.5049112]
[1748867565158,148.9,153.81,153.74,18.64964886]
[1748867565843,8.1644,153.82,153.74,18.64964886]
[1748867566942,1.6312,153.82,153.75,6.50406504]
[1748867573864,1.6312,153.82,153.74,6.50441058]
[1748867579459,6.1896,153.81,153.74,6.50441058]
[1748867579974,26.0,153.8,153.69,16.26637637]
[1748867580175,26.0,153.78,153.7,6.50618087]
[1748867580680,26.0,153.78,153.72,6.50533437]
[1748867580885,159.75598267,153.81,153.72,6.50533437]
[1748867580886,181.0896,153.81,153.72,6.50533437]
[1748867581047,185.75598267,153.81,153.72,6.50533437]
[1748867581590,181.0896,153.81,153.72,6.50533437]
[1748867582762,181.0896,153.81,153.72,18.64964886]
[1748867584597,1.6312,153.82,153.72,20.18094886]
[1748867584903,1.6312,153.82,153.74,44.64964886]
[1748867585478,155.5047,153.85,153.78,18.64964886]
[1748867585660,1.5852,153.86,153.81,26.0]
[1748867585988,1.5852,153.86,153.78,18.64964886]
[1748867585989,1.5852,153.86,153.79,26.0]
[1748867587307,1.5852,153.86,153.8,6.50195058]
[1748867587516,6.5912,153.89,153.81,18.64964886]
[1748867587718,1.6236,153.9,153.83,26.0]
[1748867587883,16.40829349,153.92,153.83,26.0]
[1748867588208,11.74672147,153.92,153.84,18.64964886]
[1748867589000,11.74672147,153.92,153.82,18.64964886]
[1748867589199,11.74672147,153.92,153.83,6.50068257]
[1748867589701,11.74672147,153.92,153.82,18.64964886]
[1748867590109,11.74672147,153.92,153.82,6.50105469]
[1748867590411,26.0,153.89,153.82,6.50105469]
[1748867591111,26.0,153.89,153.8,6.50195058]
[1748867592585,26.0,153.89,153.8,22.75682704]
[1748867592796,26.0,153.89,153.81,18.64964886]
[1748867593512,26.0,153.89,153.83,18.64964886]
[1748867594716,26.0,153.89,153.82,6.50110518]
[1748867594717,1.6236,153.94,153.86,1.5482]
[1748867594932,7.7887,153.98,153.87,18.64964886]
[1748867595109,7.7887,153.98,153.89,18.64964886]
[1748867595627,33.7887,153.98,153.89,18.64964886]
[1748867595820,33.7887,153.98,153.88,26.0]
[1748867596145,7.7887,153.98,153.88,18.64964886]
[1748867596435,26.0,153.96,153.87,6.88206005]
[1748867596607,7.7887,153.98,153.87,6.88206005]
[1748867596807,26.0,153.96,153.87,6.88206005]
[1748867597001,18.92644438,153.98,153.87,6.88206005]
[1748867597203,18.64964886,153.97,153.87,6.88206005]
[1748867597408,1.6254,153.94,153.87,6.88206005]
[1748867597633,6.5335,153.93,153.87,6.88206005]
[1748867597830,26.0,153.9,153.87,6.88206005]
[1748867598144,26.0,153.9,153.78,6.68913451]
[1748867598346,11.85815695,153.92,153.79,25.15202222]
[1748867598509,26.0,153.9,153.81,18.64964886]
[1748867598711,26.0,153.9,153.78,6.68913451]
[1748867598932,26.0,153.88,153.78,13.19174002]
[1748867599109,26.0,153.88,153.79,26.0]
[1748867601116,26.0,153.88,153.78,18.64964886]
[1748867601324,1.6412,153.87,153.78,18.64964886]
[1748867602338,1.6613,153.92,153.81,26.0]
[1748867602522,1.6613,153.92,153.82,18.64964886]
[1748867603131,1.6613,153.92,153.82,25.1507371]
[1748867605716,1.6613,153.92,153.82,41.40350006]
[1748867606826,6.5335,153.93,153.86,18.64964886]
[1748867607029,148.9,153.95,153.87,6.49899265]
[1748867610457,148.9,153.95,153.88,18.64964886]
[1748867610828,27.5588,153.96,153.88,18.64964886]
[1748867611556,27.5588,153.96,153.89,6.49814802]
[1748867611734,27.5588,153.96,153.88,6.49851127]
[1748867613756,27.5588,153.96,153.87,6.49899265]
[1748867616779,27.5588,153.96,153.86,18.64964886]
[1748867617681,27.5588,153.96,153.87,6.49899265]
[1748867618180,27.5588,153.96,153.86,25.14898197]
[1748867618850,26.0,153.94,153.86,25.14898197]
[1748867622166,26.0,153.94,153.85,32.49965334]
[1748867622667,148.9,153.93,153.84,25.14972563]
[1748867624760,148.9,153.93,153.85,18.64964886]
[1748867625360,18.57510233,153.92,153.88,18.57510233]
[1748867626179,18.57510233,153.92,153.87,18.57510233]
[1748867629085,18.57510233,153.91,153.87,18.57510233]
[1748867629262,18.57510233,153.91,153.85,25.14936461]
[1748867629470,148.9,153.93,153.87,18.57510233]
[1748867629664,18.57510233,153.92,153.87,18.57510233]
[1748867629885,18.57510233,153.91,153.85,25.14936461]
[1748867630067,18.57510233,153.91,153.86,18.57510233]
[1748867630384,18.57510233,153.9,153.86,18.57510233]
[1748867632092,18.57510233,153.91,153.86,18.57510233]
[1748867632614,18.57510233,153.91,153.87,18.57510233]
[1748867632907,18.57510233,153.91,153.86,18.57510233]
[1748867633110,18.57510233,153.91,153.85,6.4997146]
[1748867633291,18.57510233,153.91,153.86,18.57510233]
[1748867634097,18.57510233,153.91,153.87,18.57510233]
[1748867634413,18.57510233,153.92,153.87,18.57510233]
[1748867635116,18.57510233,153.91,153.87,18.57510233]
[1748867637200,18.57510233,153.92,153.87,18.57510233]
[1748867637720,18.57510233,153.91,153.87,18.57510233]
[1748867638299,148.9,153.93,153.87,25.07405143]
[1748867638710,167.47510233,153.93,153.89,18.57510233]
[1748867640820,148.9,153.93,153.9,18.57510233]
[1748867641036,148.9,153.93,153.89,6.49810061]
[1748867641037,44.57510233,153.95,153.91,18.57510233]
[1748867641319,11.4753516,153.96,153.94,18.57510233]
[1748867641620,169.02320233,154.0,153.95,18.57510233]
[1748867641806,195.02320233,154.0,153.95,18.57510233]
[1748867642217,150.4481,154.0,153.96,18.57510233]
[1748867642926,169.02320233,154.0,153.96,18.57510233]
[1748867644117,150.4481,154.0,153.96,18.57510233]
[1748867644321,169.02320233,154.0,153.96,18.57510233]
[1748867644495,150.4481,154.0,153.96,18.57510233]
[1748867644699,18.57510233,153.99,153.95,18.57510233]
[1748867645999,18.57510233,153.97,153.93,18.57510233]
[1748867646639,18.57510233,153.97,153.92,18.57510233]
[1748867646834,150.4481,154.0,153.93,18.57510233]
[1748867647053,18.57510233,153.97,153.93,18.57510233]
[1748867648143,18.57510233,153.96,153.9,18.64964886]
[1748867648307,18.57510233,153.96,153.91,18.57510233]
[1748867648943,18.57510233,153.97,153.92,18.57510233]
[1748867649430,18.57510233,153.97,153.9,18.64964886]
[1748867649632,18.57510233,153.97,153.93,18.57510233]
[1748867651020,44.57510233,153.98,153.93,18.57510233]
[1748867651317,44.57510233,153.98,153.94,18.57510233]
[1748867652417,26.0,153.98,153.94,18.57510233]
[1748867652642,167.47510233,153.99,153.95,18.57510233]
[1748867653217,18.57510233,153.98,153.94,18.57510233]
[1748867653430,148.9,153.99,153.95,18.57510233]
[1748867654034,167.47510233,153.99,153.94,18.57510233]
[1748867656542,167.47510233,153.99,153.95,18.57510233]
[1748867657127,148.9,153.99,153.95,18.57510233]
[1748867657427,167.47510233,153.99,153.95,18.57510233]
[1748867660018,167.47510233,153.99,153.93,6.49645942]